[Event "EYCC Open-U12 2019"]
[Site "Bratislava"]
[Date "2019.08.05"]
[Round "4.7"]
[White "Tran, David"]
[Black "Maurizzi, Marc Andria"]
[Result "0-1"]
[ECO "B66"]
[WhiteElo "2112"]
[BlackElo "2412"]
[Annotator "RC"]
[PlyCount "96"]
[EventDate "2019.08.02"]
[EventType "swiss"]
[EventCountry "SVK"]
[TimeControl "40/5400+30:1800+30"]

1. e4 {[%emt 0:00:00]} c5 {[%emt 0:00:04]} 2. Nf3 {[%emt 0:00:00]} Nc6 {[%emt 0:00:12]} 3. d4 {[%emt 0:00:00]} cxd4 {[%emt 0:00:05]} 4. Nxd4 {[%emt 0:00:00]} Nf6 {[%emt 0:00:04]} 5. Nc3 {[%emt 0:00:02]} d6 {[%emt 0:00:04]} 6. Bg5 {[%emt 0:00:46]} e6 {[%emt 0:00:06]} 7. Qd2 {[%emt 0:01:30]} a6 {[%emt 0:00:12]} 8. f4 {[%emt 0:00:24]} Bd7 {[%emt 0:07:04]} 9. O-O-O {[%emt 0:03:37]} b5 {[%emt 0:00:34]} 10. Nxc6 {[%emt 0:04:47]} Bxc6 {[%emt 0:00:03]} 11. Bd3 {[%emt 0:01:31]} Be7 {[%emt 0:00:28]} 12. e5 {[%emt 0:06:03]} dxe5 {[%emt 0:00:13]} 13. fxe5 {[%emt 0:00:01]} Nd7 {[%emt 0:00:12]} 14. Bxe7 {[%emt 0:00:57]} Qxe7 {[%emt 0:00:02]} 15. Qf4 {[%emt 0:06:34]} Nc5 {[%emt 0:04:25]} 16. Be4 {[%emt 0:04:22]} Bxe4 {[%emt 0:02:54]} 17. Nxe4 {[%emt 0:00:07]} Nxe4 {[%emt 0:00:05]} 18. Qxe4 {[%emt 0:00:04]} O-O {[%emt 0:00:04]} 19. Rd6 {[%emt 0:01:06]} Qg5+ {[%emt 0:11:13]} 20. Kb1 {[%emt 0:00:19]} Rac8 {[%emt 0:00:28]} 21. Rxa6 {[%emt 0:13:30]} Rc4 {[%emt 0:06:16]} 22. Qe2 {[%emt 0:04:41]} Rc5 {[%emt 0:16:16]} 23. Re1 {[%emt 0:00:46]} Rfc8 {[%emt 0:00:23]} 24. Ra7 {[%emt 0:04:50]} Qg6 {[%emt 0:10:40]} 25. Rc1 {[%emt 0:00:54]} Qf5 {[%emt 0:05:41]} 26. Qd2 {[%emt 0:08:07]} h6 {[%emt 0:07:26]} 27. Rd7 {[%emt 0:04:32]} Qxe5 {[%emt 0:03:01]} 28. Rd8+ {[%emt 0:00:12]} Rxd8 {[%emt 0:00:36]} 29. Qxd8+ {[%emt 0:00:01]} Kh7 {[%emt 0:00:02]} 30. Qd3+ {[%emt 0:00:29]} f5 {[%emt 0:00:24]} 31. g3 {[%emt 0:00:19]} Rd5 {[%emt 0:01:09]} 32. Qf3 {[%emt 0:01:26]} Rd2 {[%emt 0:00:50]} 33. h4 {[%emt 0:00:33]} Re2 {[%emt 0:03:34]} 34. Qf4 {[%emt 0:03:57]} Qd5 {[%emt 0:07:37]} 35. b3 {[%emt 0:04:38]} Qc5 {[%emt 0:02:44]} 36. Kb2 {[%emt 0:06:42]} Rf2 {[%emt 0:02:06]} 37. b4 {[%emt 0:05:27]} Qa7 {[%emt 0:01:22]} 38. Qe5 {[%emt 0:00:49]} Rf3 {[%emt 0:00:09]} 39. Kb1 {[%emt 0:05:29]} Qa3 {[%emt 0:02:14]} 40. Qb2 {[%emt 0:00:00]} Qe3 {[%emt 0:00:00]} 41. a4 {[%emt 0:03:28]} bxa4 {[%emt 0:05:36]} 42. b5 {[%emt 0:00:21]} Qc5 {[%emt 0:01:09]} 43. c3 {[%emt 0:01:12]} Rf2 {[%emt 0:14:21]} 44. Rc2 {[%emt 0:02:38]} a3 {[%emt 0:07:19]} 45. Qb4 {[%emt 0:01:02]} Rf1+ {[%emt 0:00:33]} 46. Ka2 {[%emt 0:02:33]} Qg1 {[%emt 0:02:07]} 47. Kxa3 {[%emt 0:00:37]} Ra1+ {[%emt 0:00:12]} 48. Ra2 {[%emt 0:00:10]} Qa7+ {[%emt 0:00:05]} 0-1

[Event "EYCC Open-U12 2019"]
[Site "Bratislava"]
[Date "2019.08.05"]
[Round "4.8"]
[White "Samadov, Read"]
[Black "Tunsjo, Axel"]
[Result "1-0"]
[ECO "E06"]
[WhiteElo "2230"]
[BlackElo "2039"]
[Annotator "NA"]
[PlyCount "93"]
[EventDate "2019.08.02"]
[EventType "swiss"]
[EventCountry "SVK"]
[SourceTitle "playchess.com"]
[Source "ChessBase"]
[SourceQuality "1"]
[TimeControl "40/5400+30:1800+30"]

1. d4 {[%emt 0:00:00]} Nf6 {[%emt 0:00:00]} 2. c4 {[%emt 0:00:00]} e6 {[%emt 0:00:00]} 3. g3 {[%emt 0:00:00]} d5 {[%emt 0:00:37]} 4. Bg2 {[%emt 0:00:08]} Be7 {[%emt 0:00:10]} 5. Nf3 {[%emt 0:00:37]} O-O {[%emt 0:00:09]} 6. O-O {[%emt 0:00:12]} dxc4 {[%emt 0:01:03]} 7. Qc2 {[%emt 0:00:37]} a6 {[%emt 0:00:48]} 8. a4 {[%emt 0:06:45]} Nc6 {[%emt 0:17:28]} 9. Qxc4 {[%emt 0:04:58]} a5 {[%emt 0:01:56]} 10. Rd1 {[%emt 0:07:47]} Qd5 {[%emt 0:04:30]} 11. Qxd5 {[%emt 0:12:51]} exd5 {[%emt 0:03:37]} 12. Bf4 {[%emt 0:01:56]} Bd8 {[%emt 0:04:54]} 13. Nc3 {[%emt 0:07:26]} Nb4 {[%emt 0:01:43]} 14. Nb5 {[%emt 0:03:48]} Ne8 {[%emt 0:00:35]} 15. Rac1 {[%emt 0:04:19]} c6 {[%emt 0:00:24]} 16. Nc3 {[%emt 0:01:27]} Bc7 {[%emt 0:03:19]} 17. Bxc7 {[%emt 0:11:53]} Nxc7 {[%emt 0:00:09]} 18. h3 {[%emt 0:01:13]} h5 {[%emt 0:04:45]} 19. Ne5 {[%emt 0:02:35]} Re8 {[%emt 0:01:08]} 20. Rd2 {[%emt 0:05:03]} Ne6 {[%emt 0:04:28]} 21. e3 {[%emt 0:01:51]} f6 {[%emt 0:00:40]} 22. Nd3 {[%emt 0:01:00]} Ng5 {[%emt 0:01:44]} 23. Nf4 {[%emt 0:02:31]} h4 {[%emt 0:06:57]} 24. gxh4 {[%emt 0:00:20]} Ne6 {[%emt 0:00:07]} 25. Nce2 {[%emt 0:00:52]} Kf7 {[%emt 0:03:06]} 26. h5 {[%emt 0:04:45]} Nxf4 {[%emt 0:12:20]} 27. Nxf4 {[%emt 0:00:12]} Bf5 {[%emt 0:00:04]} 28. Bf3 {[%emt 0:01:37]} Re7 {[%emt 0:01:26]} 29. Kh2 {[%emt 0:01:04]} Rg8 {[%emt 0:01:11]} 30. Rg1 {[%emt 0:01:34]} Bc2 {[%emt 0:00:56]} 31. h4 {[%emt 0:03:42]} Be4 {[%emt 0:02:36]} 32. Be2 {[%emt 0:01:26]} Bf5 {[%emt 0:00:46]} 33. Rg3 {[%emt 0:02:04]} Be4 {[%emt 0:01:07]} 34. Rd1 {[%emt 0:00:46]} Rh8 {[%emt 0:03:44]} 35. Rdg1 {[%emt 0:00:48]} Kf8 {[%emt 0:00:18]} 36. Bf1 {[%emt 0:05:24]} Rh7 {[%emt 0:03:17]} 37. Bh3 {[%emt 0:01:36]} Kf7 {[%emt 0:01:14]} 38. Bf1 {[%emt 0:01:00]} Kf8 {[%emt 0:00:29]} 39. Be2 {[%emt 0:00:37]} Rh8 {[%emt 0:00:36]} 40. Bf1 {[%emt 0:00:00]} Rh7 {[%emt 0:00:00]} 41. b3 {[%emt 0:07:46]} Kg8 {[%emt 0:08:10]} 42. Bh3 {[%emt 0:02:14]} Kf7 {[%emt 0:00:07]} 43. f3 {[%emt 0:03:53]} Bc2 {[%emt 0:02:12]} 44. e4 {[%emt 0:00:26]} dxe4 {[%emt 0:06:14]} 45. Bf5 {[%emt 0:00:13]} exf3 {[%emt 0:00:12]} 46. Bxh7 {[%emt 0:00:13]} f2 {[%emt 0:00:04]} 47. Bd3 1-0

[Event "EYCC Open-U12 2019"]
[Site "Bratislava"]
[Date "2019.08.05"]
[Round "4.9"]
[White "Strybuk, Artsiom I"]
[Black "Bakiev, Diyor"]
[Result "1/2-1/2"]
[ECO "A62"]
[WhiteElo "2193"]
[BlackElo "2121"]
[Annotator "NA"]
[PlyCount "40"]
[EventDate "2019.08.02"]
[EventType "swiss"]
[EventCountry "SVK"]
[SourceTitle "playchess.com"]
[Source "ChessBase"]
[SourceQuality "1"]
[TimeControl "40/5400+30:1800+30"]

1. d4 {[%emt 0:00:00]} Nf6 {[%emt 0:00:00]} 2. c4 {[%emt 0:00:00]} c5 {[%emt 0:00:08]} 3. d5 {[%emt 0:00:05]} e6 {[%emt 0:00:13]} 4. g3 {[%emt 0:00:21]} exd5 {[%emt 0:00:06]} 5. cxd5 {[%emt 0:00:05]} d6 {[%emt 0:00:10]} 6. Nc3 {[%emt 0:00:27]} g6 {[%emt 0:00:09]} 7. Bg2 {[%emt 0:00:10]} Bg7 {[%emt 0:00:24]} 8. Nf3 {[%emt 0:00:13]} O-O {[%emt 0:00:09]} 9. O-O {[%emt 0:00:10]} Re8 {[%emt 0:00:11]} 10. Bf4 {[%emt 0:00:07]} Bf5 {[%emt 0:00:28]} 11. Nd2 {[%emt 0:06:01]} Nh5 {[%emt 0:01:02]} 12. Be3 {[%emt 0:08:06]} Rxe3 {[%emt 0:35:29]} 13. fxe3 {[%emt 0:00:06]} Qe7 {[%emt 0:12:47]} 14. Nc4 {[%emt 0:13:44]} Bxc3 {[%emt 0:05:20]} 15. bxc3 {[%emt 0:00:11]} b5 {[%emt 0:00:47]} 16. Nd2 {[%emt 0:09:59]} Qxe3+ {[%emt 0:01:13]} 17. Kh1 {[%emt 0:00:11]} Nd7 {[%emt 0:09:12]} 18. Rf3 {[%emt 0:12:33]} Qh6 {[%emt 0:02:15]} 19. Nf1 {[%emt 0:10:17]} Ne5 {[%emt 0:01:08]} 20. a4 {[%emt 0:01:07]} bxa4 {[%emt 0:15:26]} 1/2-1/2

[Event "EYCC Open-U12 2019"]
[Site "Bratislava"]
[Date "2019.08.05"]
[Round "4.10"]
[White "Fiszer, Bartosz"]
[Black "Costa, Leonardo"]
[Result "1-0"]
[ECO "C78"]
[WhiteElo "2124"]
[BlackElo "2002"]
[Annotator "NA"]
[PlyCount "55"]
[EventDate "2019.08.02"]
[EventType "swiss"]
[EventCountry "SVK"]
[SourceTitle "playchess.com"]
[Source "ChessBase"]
[SourceQuality "1"]
[TimeControl "40/5400+30:1800+30"]

1. e4 {[%emt 0:00:00]} e5 {[%emt 0:00:00]} 2. Nf3 {[%emt 0:00:00]} Nc6 {[%emt 0:00:00]} 3. Bb5 {[%emt 0:00:00]} a6 {[%emt 0:00:00]} 4. Ba4 {[%emt 0:00:00]} Nf6 {[%emt 0:00:00]} 5. O-O {[%emt 0:00:31]} b5 {[%emt 0:00:11]} 6. Bb3 {[%emt 0:00:07]} Bc5 {[%emt 0:00:17]} 7. c3 {[%emt 0:00:41]} d6 {[%emt 0:00:18]} 8. d4 {[%emt 0:00:52]} Bb6 {[%emt 0:00:09]} 9. a4 {[%emt 0:00:07]} Rb8 {[%emt 0:00:38]} 10. a5 {[%emt 0:00:52]} Ba7 {[%emt 0:00:56]} 11. h3 {[%emt 0:00:32]} O-O {[%emt 0:08:18]} 12. Be3 {[%emt 0:00:47]} exd4 {[%emt 0:00:29]} 13. cxd4 {[%emt 0:00:36]} Nb4 {[%emt 0:01:42]} 14. Nc3 {[%emt 0:01:58]} Bb7 {[%emt 0:02:14]} 15. Ng5 {[%emt 0:03:31]} Qe8 {[%emt 0:09:56]} 16. e5 {[%emt 0:04:58]} dxe5 {[%emt 0:26:00]} 17. dxe5 {[%emt 0:03:11]} Qc6 {[%emt 0:05:13]} 18. Nf3 {[%emt 0:00:55]} Bxe3 {[%emt 0:04:23]} 19. fxe3 {[%emt 0:00:35]} Nfd5 {[%emt 0:06:19]} 20. Nxd5 {[%emt 0:00:13]} Nxd5 {[%emt 0:00:14]} 21. Qd4 {[%emt 0:00:02]} Rbd8 {[%emt 0:04:13]} 22. Rad1 {[%emt 0:03:35]} Qe8 {[%emt 0:05:02]} 23. e4 {[%emt 0:05:11]} Nf4 {[%emt 0:00:33]} 24. Qxd8 {[%emt 0:00:08]} Qxd8 {[%emt 0:00:24]} 25. Rxd8 {[%emt 0:00:02]} Rxd8 {[%emt 0:00:14]} 26. Ng5 {[%emt 0:00:10]} Ne2+ {[%emt 0:03:38]} 27. Kh2 {[%emt 0:00:15]} Rd3 {[%emt 0:03:50]} 28. Bxf7+ {[%emt 0:00:32]} 1-0

[Event "EYCC Open-U12 2019"]
[Site "Bratislava"]
[Date "2019.08.06"]
[Round "5.1"]
[White "von Mettenheim, Johannes"]
[Black "Petrovskiy, Vadim"]
[Result "0-1"]
[ECO "E81"]
[WhiteElo "1809"]
[BlackElo "2090"]
[Annotator "NA"]
[PlyCount "90"]
[EventDate "2019.08.02"]
[EventType "swiss"]
[EventCountry "SVK"]
[SourceTitle "playchess.com"]
[Source "ChessBase"]
[SourceQuality "1"]
[TimeControl "40/5400+30:1800+30"]

1. d4 {[%emt 0:00:00]} Nf6 {[%emt 0:00:00]} 2. c4 {[%emt 0:00:00]} g6 {[%emt 0:00:00]} 3. Nc3 {[%emt 0:00:00]} Bg7 {[%emt 0:00:00]} 4. e4 {[%emt 0:00:00]} d6 {[%emt 0:00:00]} 5. f3 {[%emt 0:00:00]} O-O {[%emt 0:02:22]} 6. Be3 {[%emt 0:00:00]} Nbd7 {[%emt 0:13:28]} 7. Qd2 {[%emt 0:01:00]} c5 {[%emt 0:00:24]} 8. Nge2 {[%emt 0:00:30]} cxd4 {[%emt 0:02:18]} 9. Nxd4 {[%emt 0:00:03]} Nc5 {[%emt 0:01:48]} 10. Be2 {[%emt 0:00:26]} a6 {[%emt 0:00:46]} 11. O-O {[%emt 0:00:34]} Qc7 {[%emt 0:03:05]} 12. Rac1 {[%emt 0:03:03]} e6 {[%emt 0:02:10]} 13. Rfd1 {[%emt 0:02:34]} Rd8 {[%emt 0:01:51]} 14. Nb3 {[%emt 0:11:51]} b6 {[%emt 0:07:56]} 15. Nxc5 {[%emt 0:06:29]} bxc5 {[%emt 0:00:13]} 16. e5 {[%emt 0:02:25]} Ne8 {[%emt 0:00:12]} 17. Bf4 {[%emt 0:00:08]} Bb7 {[%emt 0:02:08]} 18. exd6 {[%emt 0:00:38]} Qc6 {[%emt 0:00:19]} 19. d7 {[%emt 0:09:55]} Bd4+ {[%emt 0:00:17]} 20. Be3 {[%emt 0:00:34]} Rxd7 {[%emt 0:01:06]} 21. Bxd4 {[%emt 0:00:14]} cxd4 {[%emt 0:06:12]} 22. Ne4 {[%emt 0:03:06]} f5 {[%emt 0:00:47]} 23. Ng3 {[%emt 0:01:35]} e5 {[%emt 0:04:24]} 24. c5 {[%emt 0:02:28]} Nf6 {[%emt 0:02:31]} 25. Qg5 {[%emt 0:01:19]} Kh8 {[%emt 0:00:22]} 26. b4 {[%emt 0:00:45]} Nd5 {[%emt 0:00:57]} 27. Re1 {[%emt 0:13:10]} Re8 {[%emt 0:07:13]} 28. Bc4 {[%emt 0:08:39]} Ne3 {[%emt 0:00:46]} 29. Nf1 {[%emt 0:05:49]} Nxc4 {[%emt 0:06:07]} 30. Rxc4 {[%emt 0:00:03]} e4 {[%emt 0:04:04]} 31. a4 {[%emt 0:02:50]} Qe6 {[%emt 0:06:16]} 32. Qc1 {[%emt 0:04:10]} Bc6 {[%emt 0:02:30]} 33. fxe4 {[%emt 0:03:27]} fxe4 {[%emt 0:00:21]} 34. b5 {[%emt 0:05:58]} axb5 {[%emt 0:00:11]} 35. axb5 {[%emt 0:00:02]} Bxb5 {[%emt 0:00:21]} 36. c6 {[%emt 0:00:18]} Rd6 {[%emt 0:00:19]} 37. Rb4 {[%emt 0:00:29]} Bxc6 {[%emt 0:00:20]} 38. Qb2 {[%emt 0:00:45]} Qf6 {[%emt 0:01:08]} 39. Rd1 {[%emt 0:02:41]} e3 {[%emt 0:04:08]} 40. Nxe3 {[%emt 0:00:00]} Rxe3 {[%emt 0:00:00]} 41. Rbxd4 {[%emt 0:01:28]} Rxd4 {[%emt 0:00:17]} 42. Rf1 {[%emt 0:00:43]} Qd6 {[%emt 0:03:31]} 43. Rd1 {[%emt 0:00:17]} Re2 {[%emt 0:01:41]} 44. Qxd4+ {[%emt 0:00:13]} Qxd4+ {[%emt 0:00:06]} 45. Rxd4 {[%emt 0:00:02]} Rxg2+ {[%emt 0:00:11]} 0-1

[Event "EYCC Open-U12 2019"]
[Site "Bratislava"]
[Date "2019.08.06"]
[Round "5.2"]
[White "Piliposyan, Robert"]
[Black "Bat, Bilguun"]
[Result "1-0"]
[ECO "A40"]
[WhiteElo "2156"]
[BlackElo "2093"]
[Annotator "NA"]
[PlyCount "149"]
[EventDate "2019.08.02"]
[EventType "swiss"]
[EventCountry "SVK"]
[SourceTitle "playchess.com"]
[Source "ChessBase"]
[SourceQuality "1"]
[TimeControl "40/5400+30:1800+30"]

1. d4 {[%emt 0:00:00]} Nf6 {[%emt 0:00:00]} 2. c4 {[%emt 0:00:08]} e6 {[%emt 0:00:00]} 3. g3 {[%emt 0:00:18]} d5 {[%emt 0:00:04]} 4. Nf3 {[%emt 0:00:09]} Bb4+ {[%emt 0:00:07]} 5. Bd2 {[%emt 0:00:05]} Be7 {[%emt 0:00:16]} 6. Qc2 {[%emt 0:00:07]} O-O {[%emt 0:00:20]} 7. Bg2 {[%emt 0:00:05]} Nbd7 {[%emt 0:00:24]} 8. O-O {[%emt 0:00:10]} Ne4 {[%emt 0:00:15]} 9. Nc3 {[%emt 0:00:15]} Nxd2 {[%emt 0:00:14]} 10. Nxd2 {[%emt 0:00:33]} c6 {[%emt 0:00:11]} 11. e4 {[%emt 0:01:15]} dxe4 {[%emt 0:00:12]} 12. Ndxe4 {[%emt 0:03:19]} f5 {[%emt 0:00:11]} 13. Nd2 {[%emt 0:01:04]} e5 {[%emt 0:00:08]} 14. d5 {[%emt 0:02:08]} e4 {[%emt 0:04:10]} 15. Rad1 {[%emt 0:08:35]} Qc7 {[%emt 0:12:55]} 16. Nb3 {[%emt 0:17:03]} Nc5 {[%emt 0:11:01]} 17. Nxc5 {[%emt 0:12:04]} Bxc5 {[%emt 0:00:27]} 18. a3 {[%emt 0:01:48]} a5 {[%emt 0:06:27]} 19. Na4 {[%emt 0:01:22]} Be7 {[%emt 0:05:02]} 20. Qb3 {[%emt 0:01:48]} cxd5 {[%emt 0:16:44]} 21. Nb6 {[%emt 0:02:27]} Ra6 {[%emt 0:02:19]} 22. Nxd5 {[%emt 0:00:37]} Qc5 {[%emt 0:03:42]} 23. Nxe7+ {[%emt 0:01:03]} Qxe7 {[%emt 0:01:49]} 24. c5+ {[%emt 0:06:26]} Be6 {[%emt 0:01:00]} 25. Qe3 {[%emt 0:05:14]} a4 {[%emt 0:07:08]} 26. f3 {[%emt 0:03:27]} Bc4 {[%emt 0:08:09]} 27. Rf2 {[%emt 0:03:26]} Bb3 {[%emt 0:03:58]} 28. Re1 {[%emt 0:06:05]} Rc6 {[%emt 0:08:47]} 29. fxe4 {[%emt 0:00:57]} Rxc5 {[%emt 0:00:11]} 30. e5 {[%emt 0:09:00]} g6 {[%emt 0:01:09]} 31. Qf4 {[%emt 0:04:01]} b6 {[%emt 0:01:05]} 32. Rfe2 {[%emt 0:00:57]} Qe6 {[%emt 0:00:46]} 33. h4 {[%emt 0:02:16]} Rfc8 {[%emt 0:01:21]} 34. Qd4 {[%emt 0:00:45]} Rc1 {[%emt 0:01:14]} 35. Rxc1 {[%emt 0:00:40]} Rxc1+ {[%emt 0:00:02]} 36. Kh2 {[%emt 0:00:03]} Rd1 {[%emt 0:01:13]} 37. Qc3 {[%emt 0:01:55]} f4 {[%emt 0:01:08]} 38. Rf2 {[%emt 0:01:48]} fxg3+ {[%emt 0:01:20]} 39. Qxg3 {[%emt 0:00:03]} Qe7 {[%emt 0:02:12]} 40. h5 {[%emt 0:00:00]} Kg7 {[%emt 0:00:00]} 41. hxg6 {[%emt 0:04:26]} hxg6 {[%emt 0:04:37]} 42. Rf6 {[%emt 0:03:44]} Qe8 {[%emt 0:07:20]} 43. Rd6 {[%emt 0:09:35]} Qh8+ {[%emt 0:18:08]} 44. Bh3 {[%emt 0:01:50]} Qh5 {[%emt 0:00:37]} 45. Rxd1 {[%emt 0:01:50]} Qxd1 {[%emt 0:00:13]} 46. Qf2 {[%emt 0:08:47]} Qc2 {[%emt 0:01:08]} 47. Qxc2 {[%emt 0:00:17]} Bxc2 {[%emt 0:00:01]} 48. Kg3 {[%emt 0:00:01]} g5 {[%emt 0:00:47]} 49. Bd7 {[%emt 0:01:07]} Bd1 {[%emt 0:01:22]} 50. Bf5 {[%emt 0:00:54]} Kf7 {[%emt 0:00:29]} 51. Kf2 {[%emt 0:00:05]} Bb3 {[%emt 0:01:14]} 52. Kf3 {[%emt 0:00:36]} Bd1+ {[%emt 0:00:26]} 53. Ke3 {[%emt 0:01:13]} Ke7 {[%emt 0:00:30]} 54. Kd4 {[%emt 0:01:28]} Bb3 {[%emt 0:00:05]} 55. Bg4 {[%emt 0:00:32]} Kf7 {[%emt 0:00:46]} 56. Ke4 {[%emt 0:00:45]} Kg6 {[%emt 0:00:38]} 57. Bf5+ {[%emt 0:01:14]} Kf7 {[%emt 0:00:09]} 58. Bd7 {[%emt 0:00:15]} Kg6 {[%emt 0:00:43]} 59. Be8+ {[%emt 0:00:09]} Kg7 {[%emt 0:01:33]} 60. Kf5 {[%emt 0:00:10]} Kf8 {[%emt 0:00:10]} 61. Bb5 {[%emt 0:00:57]} Ke7 {[%emt 0:00:36]} 62. Kxg5 {[%emt 0:00:06]} Ke6 {[%emt 0:00:11]} 63. Kf4 {[%emt 0:00:04]} Kd5 {[%emt 0:00:20]} 64. Kf5 {[%emt 0:00:59]} Kc5 {[%emt 0:00:23]} 65. Bd7 {[%emt 0:00:20]} Kd4 {[%emt 0:01:17]} 66. e6 {[%emt 0:00:24]} Kd3 {[%emt 0:00:56]} 67. e7 {[%emt 0:00:05]} Bf7 {[%emt 0:00:03]} 68. Bxa4 {[%emt 0:00:04]} Kd2 {[%emt 0:00:07]} 69. e8=Q {[%emt 0:00:11]} Bxe8 {[%emt 0:00:07]} 70. Bxe8 {[%emt 0:00:03]} Kc2 {[%emt 0:00:08]} 71. b4 {[%emt 0:00:04]} Kb3 {[%emt 0:00:04]} 72. b5 {[%emt 0:00:03]} Kxa3 {[%emt 0:00:04]} 73. Ke5 {[%emt 0:00:02]} Kb4 {[%emt 0:00:11]} 74. Kd5 {[%emt 0:00:03]} Ka5 {[%emt 0:00:06]} 75. Ke4 1-0

[Event "EYCC Open-U12 2019"]
[Site "Bratislava"]
[Date "2019.08.06"]
[Round "5.3"]
[White "Vergara Anton, Diego"]
[Black "Makridis, Dimitrios"]
[Result "1/2-1/2"]
[ECO "D02"]
[WhiteElo "2183"]
[BlackElo "1798"]
[Annotator "NA"]
[PlyCount "35"]
[EventDate "2019.08.02"]
[EventType "swiss"]
[EventCountry "SVK"]
[SourceTitle "playchess.com"]
[Source "ChessBase"]
[SourceQuality "1"]
[TimeControl "40/5400+30:1800+30"]

1. d4 {[%emt 0:00:00]} d5 {[%emt 0:00:00]} 2. Nf3 {[%emt 0:00:00]} Nf6 {[%emt 0:00:00]} 3. c4 {[%emt 0:00:00]} e6 {[%emt 0:00:00]} 4. g3 {[%emt 0:00:15]} Bb4+ {[%emt 0:00:00]} 5. Bd2 {[%emt 0:03:01]} Be7 {[%emt 0:00:02]} 6. Bg2 {[%emt 0:00:25]} c6 {[%emt 0:01:03]} 7. O-O {[%emt 0:00:23]} O-O {[%emt 0:00:13]} 8. Bc3 {[%emt 0:00:48]} Nbd7 {[%emt 0:02:14]} 9. Nbd2 {[%emt 0:04:50]} b6 {[%emt 0:02:26]} 10. Re1 {[%emt 0:03:59]} Bb7 {[%emt 0:06:17]} 11. b3 {[%emt 0:07:00]} Rc8 {[%emt 0:04:37]} 12. Bb2 {[%emt 0:01:22]} Qc7 {[%emt 0:02:18]} 13. Rc1 {[%emt 0:03:20]} Qb8 {[%emt 0:01:30]} 14. cxd5 {[%emt 0:03:39]} cxd5 {[%emt 0:00:52]} 15. Rxc8 {[%emt 0:02:48]} Rxc8 {[%emt 0:00:24]} 16. Qb1 {[%emt 0:01:53]} b5 {[%emt 0:14:35]} 17. Rc1 {[%emt 0:00:44]} b4 {[%emt 0:01:38]} 18. Rxc8+ {[%emt 0:01:22]} 1/2-1/2

[Event "EYCC Open-U12 2019"]
[Site "Bratislava"]
[Date "2019.08.06"]
[Round "5.4"]
[White "Maurizzi, Marc Andria"]
[Black "Kamilov, Dmitry"]
[Result "1-0"]
[ECO "A48"]
[WhiteElo "2412"]
[BlackElo "1990"]
[Annotator "NA"]
[PlyCount "93"]
[EventDate "2019.08.02"]
[EventType "swiss"]
[EventCountry "SVK"]
[SourceTitle "playchess.com"]
[Source "ChessBase"]
[SourceQuality "1"]
[TimeControl "40/5400+30:1800+30"]

1. d4 {[%emt 0:00:00]} Nf6 {[%emt 0:00:00]} 2. Nf3 {[%emt 0:00:00]} g6 {[%emt 0:00:00]} 3. Nbd2 {[%emt 0:00:04]} d5 {[%emt 0:00:19]} 4. e3 {[%emt 0:00:08]} Bg7 {[%emt 0:00:25]} 5. b4 {[%emt 0:00:08]} O-O {[%emt 0:01:18]} 6. Be2 {[%emt 0:01:18]} Re8 {[%emt 0:20:11]} 7. O-O {[%emt 0:02:46]} Nfd7 {[%emt 0:06:37]} 8. Bb2 {[%emt 0:02:53]} e5 {[%emt 0:03:13]} 9. c4 {[%emt 0:09:49]} e4 {[%emt 0:05:18]} 10. Ne1 {[%emt 0:00:02]} c6 {[%emt 0:00:13]} 11. cxd5 {[%emt 0:14:30]} cxd5 {[%emt 0:00:08]} 12. b5 {[%emt 0:00:27]} Nf6 {[%emt 0:02:51]} 13. Nb3 {[%emt 0:03:24]} Nbd7 {[%emt 0:06:45]} 14. a4 {[%emt 0:14:04]} a5 {[%emt 0:13:38]} 15. bxa6 {[%emt 0:06:54]} b6 {[%emt 0:00:15]} 16. Nc2 {[%emt 0:05:05]} Bxa6 {[%emt 0:05:43]} 17. Bxa6 {[%emt 0:02:09]} Rxa6 {[%emt 0:00:06]} 18. Nb4 {[%emt 0:00:11]} Ra8 {[%emt 0:00:07]} 19. Qe2 {[%emt 0:01:21]} Qe7 {[%emt 0:02:17]} 20. Qb5 {[%emt 0:09:06]} Qd6 {[%emt 0:10:33]} 21. h3 {[%emt 0:01:18]} Rec8 {[%emt 0:01:06]} 22. Rfc1 {[%emt 0:01:13]} g5 {[%emt 0:01:20]} 23. Nc6 {[%emt 0:02:02]} Bf8 {[%emt 0:02:53]} 24. Ne5 {[%emt 0:03:47]} Qe6 {[%emt 0:01:06]} 25. Rxc8 {[%emt 0:03:02]} Rxc8 {[%emt 0:00:05]} 26. Rc1 {[%emt 0:00:12]} Rxc1+ {[%emt 0:00:15]} 27. Nxc1 {[%emt 0:00:02]} g4 {[%emt 0:02:55]} 28. Ne2 {[%emt 0:00:09]} Bh6 {[%emt 0:06:34]} 29. h4 {[%emt 0:01:53]} g3 {[%emt 0:01:34]} 30. Nxg3 {[%emt 0:00:22]} Nxe5 {[%emt 0:00:06]} 31. dxe5 {[%emt 0:00:02]} Ng4 {[%emt 0:00:19]} 32. Bd4 {[%emt 0:01:37]} Nxe5 {[%emt 0:00:46]} 33. Bxe5 {[%emt 0:02:28]} Qxe5 {[%emt 0:00:06]} 34. Qxb6 {[%emt 0:00:04]} Bf8 {[%emt 0:00:56]} 35. a5 {[%emt 0:00:34]} Qd6 {[%emt 0:04:34]} 36. Qb7 {[%emt 0:00:34]} Qa3 {[%emt 0:00:19]} 37. Qxd5 {[%emt 0:00:50]} Bb4 {[%emt 0:00:30]} 38. Qd8+ {[%emt 0:00:23]} Bf8 {[%emt 0:00:06]} 39. Qg5+ {[%emt 0:00:36]} Kh8 {[%emt 0:00:18]} 40. Qe5+ {[%emt 0:00:00]} Kg8 {[%emt 0:00:00]} 41. Nxe4 {[%emt 0:00:33]} Qa4 {[%emt 0:00:50]} 42. Nf6+ {[%emt 0:00:27]} Kh8 {[%emt 0:00:07]} 43. Nd7+ {[%emt 0:00:26]} Kg8 {[%emt 0:00:07]} 44. Qg5+ {[%emt 0:00:24]} Kh8 {[%emt 0:00:08]} 45. Nxf8 {[%emt 0:00:11]} Qd1+ {[%emt 0:00:31]} 46. Kh2 {[%emt 0:00:02]} Qd6+ {[%emt 0:00:11]} 47. Qf4 {[%emt 0:00:04]} 1-0